Workbook

Sheet 836
A1: Lookup Value | B1: data1 | D1: Lookup Value | E1: Solves problem if cell D2 has an extra space
A2: x2 | B2: 0.22 | D2: x2
A3: GOOG | B3: 0.13 | E3: =ShowFormulaTop -> 
A4: 2 | B4: 0.0425 | D4: Lookup Value | E4: Solves problem if cell in 1st column in table has extra spaces, Enter formula with Ctrl + Shift + Enter
A5: 77 | B5: 0.2575 | D5: GOOG
E6: =ShowFormulaTop -> 
D7: Lookup Value | E7: Solves problem if cell D8 is a number stored as text and the number in the lookup table is a number
D8: 2
E9: =ShowFormulaTop -> 
D10: Lookup Value | E10: Solves problem if cell in 1st column in table has number stored as text, but D11 is a number
D11: 77
E12: =ShowFormulaTop -> 
E13: =VLOOKUP(D11,A2:B5+0,2,0), Ctrl + Shift + Enter

Sheet 836 (an)
A1: Lookup Value | B1: data1 | D1: Lookup Value | E1: Solves problem if cell D2 has an extra space
A2: x2 | B2: 0.22 | D2: x2 | E2: =VLOOKUP(TRIM(D2),A2:B5,2,0) -> 0.22
A3: GOOG | B3: 0.13 | E3: =ShowFormulaTop -> =VLOOKUP(TRIM(D2),A2:B5,2,0)
A4: 2 | B4: 0.0425 | D4: Lookup Value | E4: Solves problem if cell in 1st column in table has extra spaces, Enter formula with Ctrl + Shift + Enter
A5: 77 | B5: 0.2575 | D5: GOOG | E5: =--VLOOKUP(D5,TRIM(A2:B5),2,0) -> 0.13
E6: =ShowFormulaTop -> =--VLOOKUP(D5,TRIM(A2:B5),2,0)
D7: Lookup Value | E7: Solves problem if cell D8 is a number stored as text and the number in the lookup table is a number
D8: 2 | E8: =VLOOKUP(D8+0,A2:B5,2,0) -> 0.0425
E9: =ShowFormulaTop -> =VLOOKUP(D8+0,A2:B5,2,0)
D10: Lookup Value | E10: Solves problem if cell in 1st column in table has number stored as text, but D11 is a number
D11: 77 | E11: =VLOOKUP(D11&"",A2:B5,2,0) -> 0.2575
E12: =ShowFormulaTop -> =VLOOKUP(D11&"",A2:B5,2,0)
E13: =VLOOKUP(D11,A2:B5+0,2,0), Ctrl + Shift + Enter
E14: =VLOOKUP(D11,A2:B5+0,2,0) -> 0.2575

Sheet 837
A1: Probability that Pete Catch Fish on particular Day | B1: 0.8 | C1: Catch Fish | D1: F
A2: Probability that Pete NOT Catch Fish on particular Day | B2: =1-B1 -> 0.2 | C2: Not Catch Fish | D2: NF
A3: Days gone fishing | B3: 3
A5: Sample Space | D5: Multiply
A6: Day 1 | B6: Day 2 | C6: Day 3 | D6: Pr | E6: Count F (F = Success) | G6: Successes | H6: Pr | I6: Pr | L6: 1
A7: F | B7: F | C7: F | E7: =COUNTIF(A7:C7,$D$1) -> 3 | G7: 0 | H7: ="P(x="&G7&")" -> P(x=0) | I7: =SUMIF($E$7:$E$14,G7,$D$7:$D$14) -> 0 | J7: Add these | K7: P(X<=1) = | L7: =SUM(I7:I8) -> 0
A8: NF | B8: F | C8: F | E8: =COUNTIF(A8:C8,$D$1) -> 2 | G8: 1 | H8: ="P(x="&G8&")" -> P(x=1) | I8: =SUMIF($E$7:$E$14,G8,$D$7:$D$14) -> 0 | J8: Two
A9: F | B9: NF | C9: F | E9: 2 | G9: 2 | H9: ="P(x="&G9&")" -> P(x=2) | I9: =SUMIF($E$7:$E$14,G9,$D$7:$D$14) -> 0
A10: F | B10: F | C10: NF | E10: 2 | G10: 3 | H10: ="P(x="&G10&")" -> P(x=3) | I10: =SUMIF($E$7:$E$14,G10,$D$7:$D$14) -> 0
A11: NF | B11: NF | C11: F | E11: 1
A12: NF | B12: F | C12: NF | E12: 1
A13: F | B13: NF | C13: NF | E13: 1 | H13: Or:
A14: NF | B14: NF | C14: NF | E14: 0 | G14: 1 | H14: Fixed # Trials? | K14: Yes
G15: 2 | H15: 2 Outcomes on each trial? | K15: Yes
G16: 3 | H16: Pr same each Trial? | K16: Yes
G17: 4 | H17: Independent? | K17: Yes
G19: 2 | H19: =H7 -> P(x=0) | I19: =BINOMDIST(G7,$B$3,$B$1,0) -> 0.008
H20: =H8 -> P(x=1) | I20: =BINOMDIST(G8,$B$3,$B$1,0) -> 0.096
H21: Add | I21: =SUM(I19:I20) -> 0.104
G23: 3 | H23: P(X<=1) = | I23: =BINOMDIST(G8,B3,B1,1) -> 0.104

Sheet 837 (an)
A1: Probability that Pete Catch Fish on particular Day | B1: 0.8 | C1: Catch Fish | D1: F
A2: Probability that Pete NOT Catch Fish on particular Day | B2: =1-B1 -> 0.2 | C2: Not Catch Fish | D2: NF
A3: Days gone fishing | B3: 3
A5: Sample Space | D5: Multiply
A6: Day 1 | B6: Day 2 | C6: Day 3 | D6: Pr | E6: Count F (F = Success) | G6: Successes | H6: Pr | I6: Pr | L6: 1
A7: F | B7: F | C7: F | D7: =PRODUCT(SUMIF($D$1:$D$2,A7:C7,$B$1:$B$2)) -> 0.512 | E7: =COUNTIF(A7:C7,$D$1) -> 3 | G7: 0 | H7: ="P(x="&G7&")" -> P(x=0) | I7: =SUMIF($E$7:$E$14,G7,$D$7:$D$14) -> 0.008 | J7: Add these | K7: P(X<=1) = | L7: =SUM(I7:I8) -> 0.104
A8: NF | B8: F | C8: F | D8: =PRODUCT(SUMIF($D$1:$D$2,A8:C8,$B$1:$B$2)) -> 0.128 | E8: =COUNTIF(A8:C8,$D$1) -> 2 | G8: 1 | H8: ="P(x="&G8&")" -> P(x=1) | I8: =SUMIF($E$7:$E$14,G8,$D$7:$D$14) -> 0.096 | J8: Two
A9: F | B9: NF | C9: F | D9: =PRODUCT(SUMIF($D$1:$D$2,A9:C9,$B$1:$B$2)) -> 0.128 | E9: 2 | G9: 2 | H9: ="P(x="&G9&")" -> P(x=2) | I9: =SUMIF($E$7:$E$14,G9,$D$7:$D$14) -> 0.384
A10: F | B10: F | C10: NF | D10: =PRODUCT(SUMIF($D$1:$D$2,A10:C10,$B$1:$B$2)) -> 0.128 | E10: 2 | G10: 3 | H10: ="P(x="&G10&")" -> P(x=3) | I10: =SUMIF($E$7:$E$14,G10,$D$7:$D$14) -> 0.512
A11: NF | B11: NF | C11: F | D11: =PRODUCT(SUMIF($D$1:$D$2,A11:C11,$B$1:$B$2)) -> 0.032 | E11: 1
A12: NF | B12: F | C12: NF | D12: =PRODUCT(SUMIF($D$1:$D$2,A12:C12,$B$1:$B$2)) -> 0.032 | E12: 1
A13: F | B13: NF | C13: NF | D13: =PRODUCT(SUMIF($D$1:$D$2,A13:C13,$B$1:$B$2)) -> 0.032 | E13: 1 | H13: Or:
A14: NF | B14: NF | C14: NF | D14: =PRODUCT(SUMIF($D$1:$D$2,A14:C14,$B$1:$B$2)) -> 0.008 | E14: 0 | G14: 1 | H14: Fixed # Trials? | K14: Yes
G15: 2 | H15: 2 Outcomes on each trial? | K15: Yes
G16: 3 | H16: Pr same each Trial? | K16: Yes
G17: 4 | H17: Independent? | K17: Yes
G19: 2 | H19: =H7 -> P(x=0) | I19: =BINOMDIST(G7,$B$3,$B$1,0) -> 0.008
H20: =H8 -> P(x=1) | I20: =BINOMDIST(G8,$B$3,$B$1,0) -> 0.096
H21: Add | I21: =SUM(I19:I20) -> 0.104
G23: 3 | H23: P(X<=1) = | I23: =BINOMDIST(G8,B3,B1,1) -> 0.104

Sheet 838
A1: Dept | B1: Sales | C1: Comission | D1: Comission
A2: Oper | B2: 4360
A3: Oper | B3: 624
A4: Oper | B4: 6522
A5: Acc | B5: 2946
A6: Fin | B6: 8275
A7: Acc | B7: 7697
A8: Oper | B8: 175
A10: Dept/Sales | B10: 0 | C10: 500 | D10: 2500 | E10: 5000
A11: Acc | B11: 0.022 | C11: 0.028 | D11: 0.03 | E11: 0.04
A12: Fin | B12: 0.014 | C12: 0.02 | D12: 0.029 | E12: 0.032
A13: Oper | B13: 0.02 | C13: 0.022 | D13: 0.029 | E13: 0.031

Sheet 838 (an)
A1: Dept | B1: Sales | C1: Comission | D1: Comission
A2: Oper | B2: 4360 | C2: =VLOOKUP(A2,$A$11:$E$13,MATCH(B2,$A$10:$E$10),0)*B2 -> 126.44 | D2: =INDEX($B$11:$E$13,MATCH(A2,$A$11:$A$13,0),MATCH(B2,$B$10:$E$10))*B2 -> 126.44
A3: Oper | B3: 624 | C3: =VLOOKUP(A3,$A$11:$E$13,MATCH(B3,$A$10:$E$10),0)*B3 -> 13.728 | D3: =INDEX($B$11:$E$13,MATCH(A3,$A$11:$A$13,0),MATCH(B3,$B$10:$E$10))*B3 -> 13.728
A4: Oper | B4: 6522 | C4: 202.182 | D4: 202.182
A5: Acc | B5: 2946 | C5: 88.38 | D5: 88.38
A6: Fin | B6: 8275 | C6: 264.8 | D6: 264.8
A7: Acc | B7: 7697 | C7: 307.88 | D7: 307.88
A8: Oper | B8: 175 | C8: 3.5 | D8: 3.5
A10: Dept/Sales | B10: 0 | C10: 500 | D10: 2500 | E10: 5000
A11: Acc | B11: 0.022 | C11: 0.028 | D11: 0.03 | E11: 0.04
A12: Fin | B12: 0.014 | C12: 0.02 | D12: 0.029 | E12: 0.032
A13: Oper | B13: 0.02 | C13: 0.022 | D13: 0.029 | E13: 0.031

Sheet 839
A1: Date | B1: Percentage | C1: STDEV | D1: STDEV
A2: 2009-08-19 | B2: 0.2675
A3: 2009-08-19 | B3: 0.2679
A4: 2009-08-19 | B4: 0.2814
A5: 2009-08-19 | B5: 0.2657
A6: 2009-08-19 | B6: 0.264
A7: 2009-08-19 | B7: 0.2554
A8: 2009-08-19 | B8: 0.2661
A9: 2009-09-16 | B9: 0.3654
A10: 2009-09-16 | B10: 0.3727
A11: 2009-09-16 | B11: 0.3792
A12: 2009-09-16 | B12: 0.3784
A13: 2009-09-16 | B13: 0.371
A14: 2009-09-16 | B14: 0.3233
A15: 2009-09-16 | B15: 0.3164
A16: 2009-09-16 | B16: 0.3282
A17: 2009-09-16 | B17: 0.315
A18: 2009-09-16 | B18: 0.328
A19: 2009-09-16 | B19: 0.3369
A20: 2009-09-16 | B20: 0.3299
A21: 2009-09-16 | B21: 0.3299
A22: 2009-09-16 | B22: 0.3162
A23: 2009-09-16 | B23: 0.2952
A24: 2009-09-16 | B24: 0.2903
A25: 2009-09-16 | B25: 0.2857
A26: 2009-09-16 | B26: 0.3015
A27: 2009-10-14 | B27: 0.202
A28: 2009-10-14 | B28: 0.1953
A29: 2009-10-14 | B29: 0.3336
A30: 2009-10-14 | B30: 0.3299
A31: 2009-10-14 | B31: 0.3137
A32: 2009-10-14 | B32: 0.3223
A33: 2009-10-14 | B33: 0.3203
A34: 2009-10-14 | B34: 0.3348
A35: 2009-10-14 | B35: 0.3317
A36: 2009-10-14 | B36: 0.3368

Sheet 839 (an)
A1: Date | B1: Percentage | C1: STDEV | D1: STDEV
A2: 2009-08-19 | B2: 0.2675 | C2: =IF(A1<>A2,_xlfn.STDEV.S(IF($A$2:$A$36=A2,$B$2:$B$36)),"") -> 0.007684802566 | D2: =IF(A1<>A2,_xlfn.STDEV.S(B2:INDEX($B$2:$B$36,MATCH(A2,$A$2:$A$36))),"") -> 0.007684802566
A3: 2009-08-19 | B3: 0.2679 | C3: =IF(A2<>A3,_xlfn.STDEV.S(IF($A$2:$A$36=A3,$B$2:$B$36)),"") ->  | D3: =IF(A2<>A3,_xlfn.STDEV.S(B3:INDEX($B$2:$B$36,MATCH(A3,$A$2:$A$36))),"") -> 
A4: 2009-08-19 | B4: 0.2814 | C4: =IF(A3<>A4,_xlfn.STDEV.S(IF($A$2:$A$36=A4,$B$2:$B$36)),"") ->  | D4: =IF(A3<>A4,_xlfn.STDEV.S(B4:INDEX($B$2:$B$36,MATCH(A4,$A$2:$A$36))),"") -> 
A5: 2009-08-19 | B5: 0.2657 | C5: =IF(A4<>A5,_xlfn.STDEV.S(IF($A$2:$A$36=A5,$B$2:$B$36)),"") ->  | D5: =IF(A4<>A5,_xlfn.STDEV.S(B5:INDEX($B$2:$B$36,MATCH(A5,$A$2:$A$36))),"") -> 
A6: 2009-08-19 | B6: 0.264 | C6: =IF(A5<>A6,_xlfn.STDEV.S(IF($A$2:$A$36=A6,$B$2:$B$36)),"") ->  | D6: =IF(A5<>A6,_xlfn.STDEV.S(B6:INDEX($B$2:$B$36,MATCH(A6,$A$2:$A$36))),"") -> 
A7: 2009-08-19 | B7: 0.2554 | C7: =IF(A6<>A7,_xlfn.STDEV.S(IF($A$2:$A$36=A7,$B$2:$B$36)),"") ->  | D7: =IF(A6<>A7,_xlfn.STDEV.S(B7:INDEX($B$2:$B$36,MATCH(A7,$A$2:$A$36))),"") -> 
A8: 2009-08-19 | B8: 0.2661 | C8: =IF(A7<>A8,_xlfn.STDEV.S(IF($A$2:$A$36=A8,$B$2:$B$36)),"") ->  | D8: =IF(A7<>A8,_xlfn.STDEV.S(B8:INDEX($B$2:$B$36,MATCH(A8,$A$2:$A$36))),"") -> 
A9: 2009-09-16 | B9: 0.3654 | C9: =IF(A8<>A9,_xlfn.STDEV.S(IF($A$2:$A$36=A9,$B$2:$B$36)),"") -> 0.03044066338 | D9: =IF(A8<>A9,_xlfn.STDEV.S(B9:INDEX($B$2:$B$36,MATCH(A9,$A$2:$A$36))),"") -> 0.03044066338
A10: 2009-09-16 | B10: 0.3727 | C10: =IF(A9<>A10,_xlfn.STDEV.S(IF($A$2:$A$36=A10,$B$2:$B$36)),"") ->  | D10: =IF(A9<>A10,_xlfn.STDEV.S(B10:INDEX($B$2:$B$36,MATCH(A10,$A$2:$A$36))),"") -> 
A11: 2009-09-16 | B11: 0.3792 | C11: =IF(A10<>A11,_xlfn.STDEV.S(IF($A$2:$A$36=A11,$B$2:$B$36)),"") ->  | D11: =IF(A10<>A11,_xlfn.STDEV.S(B11:INDEX($B$2:$B$36,MATCH(A11,$A$2:$A$36))),"") -> 
A12: 2009-09-16 | B12: 0.3784 | C12: =IF(A11<>A12,_xlfn.STDEV.S(IF($A$2:$A$36=A12,$B$2:$B$36)),"") ->  | D12: =IF(A11<>A12,_xlfn.STDEV.S(B12:INDEX($B$2:$B$36,MATCH(A12,$A$2:$A$36))),"") -> 
A13: 2009-09-16 | B13: 0.371 | C13: =IF(A12<>A13,_xlfn.STDEV.S(IF($A$2:$A$36=A13,$B$2:$B$36)),"") ->  | D13: =IF(A12<>A13,_xlfn.STDEV.S(B13:INDEX($B$2:$B$36,MATCH(A13,$A$2:$A$36))),"") -> 
A14: 2009-09-16 | B14: 0.3233 | C14: =IF(A13<>A14,_xlfn.STDEV.S(IF($A$2:$A$36=A14,$B$2:$B$36)),"") ->  | D14: =IF(A13<>A14,_xlfn.STDEV.S(B14:INDEX($B$2:$B$36,MATCH(A14,$A$2:$A$36))),"") -> 
A15: 2009-09-16 | B15: 0.3164 | C15: =IF(A14<>A15,_xlfn.STDEV.S(IF($A$2:$A$36=A15,$B$2:$B$36)),"") ->  | D15: =IF(A14<>A15,_xlfn.STDEV.S(B15:INDEX($B$2:$B$36,MATCH(A15,$A$2:$A$36))),"") -> 
A16: 2009-09-16 | B16: 0.3282 | C16: =IF(A15<>A16,_xlfn.STDEV.S(IF($A$2:$A$36=A16,$B$2:$B$36)),"") ->  | D16: =IF(A15<>A16,_xlfn.STDEV.S(B16:INDEX($B$2:$B$36,MATCH(A16,$A$2:$A$36))),"") -> 
A17: 2009-09-16 | B17: 0.315 | C17: =IF(A16<>A17,_xlfn.STDEV.S(IF($A$2:$A$36=A17,$B$2:$B$36)),"") ->  | D17: =IF(A16<>A17,_xlfn.STDEV.S(B17:INDEX($B$2:$B$36,MATCH(A17,$A$2:$A$36))),"") -> 
A18: 2009-09-16 | B18: 0.328 | C18: =IF(A17<>A18,_xlfn.STDEV.S(IF($A$2:$A$36=A18,$B$2:$B$36)),"") ->  | D18: =IF(A17<>A18,_xlfn.STDEV.S(B18:INDEX($B$2:$B$36,MATCH(A18,$A$2:$A$36))),"") -> 
A19: 2009-09-16 | B19: 0.3369 | C19: =IF(A18<>A19,_xlfn.STDEV.S(IF($A$2:$A$36=A19,$B$2:$B$36)),"") ->  | D19: =IF(A18<>A19,_xlfn.STDEV.S(B19:INDEX($B$2:$B$36,MATCH(A19,$A$2:$A$36))),"") -> 
A20: 2009-09-16 | B20: 0.3299 | C20: =IF(A19<>A20,_xlfn.STDEV.S(IF($A$2:$A$36=A20,$B$2:$B$36)),"") ->  | D20: =IF(A19<>A20,_xlfn.STDEV.S(B20:INDEX($B$2:$B$36,MATCH(A20,$A$2:$A$36))),"") -> 
A21: 2009-09-16 | B21: 0.3299 | C21: =IF(A20<>A21,_xlfn.STDEV.S(IF($A$2:$A$36=A21,$B$2:$B$36)),"") ->  | D21: =IF(A20<>A21,_xlfn.STDEV.S(B21:INDEX($B$2:$B$36,MATCH(A21,$A$2:$A$36))),"") -> 
A22: 2009-09-16 | B22: 0.3162 | C22: =IF(A21<>A22,_xlfn.STDEV.S(IF($A$2:$A$36=A22,$B$2:$B$36)),"") ->  | D22: =IF(A21<>A22,_xlfn.STDEV.S(B22:INDEX($B$2:$B$36,MATCH(A22,$A$2:$A$36))),"") -> 
A23: 2009-09-16 | B23: 0.2952 | C23: =IF(A22<>A23,_xlfn.STDEV.S(IF($A$2:$A$36=A23,$B$2:$B$36)),"") ->  | D23: =IF(A22<>A23,_xlfn.STDEV.S(B23:INDEX($B$2:$B$36,MATCH(A23,$A$2:$A$36))),"") -> 
A24: 2009-09-16 | B24: 0.2903 | C24: =IF(A23<>A24,_xlfn.STDEV.S(IF($A$2:$A$36=A24,$B$2:$B$36)),"") ->  | D24: =IF(A23<>A24,_xlfn.STDEV.S(B24:INDEX($B$2:$B$36,MATCH(A24,$A$2:$A$36))),"") -> 
A25: 2009-09-16 | B25: 0.2857 | C25: =IF(A24<>A25,_xlfn.STDEV.S(IF($A$2:$A$36=A25,$B$2:$B$36)),"") ->  | D25: =IF(A24<>A25,_xlfn.STDEV.S(B25:INDEX($B$2:$B$36,MATCH(A25,$A$2:$A$36))),"") -> 
A26: 2009-09-16 | B26: 0.3015 | C26: =IF(A25<>A26,_xlfn.STDEV.S(IF($A$2:$A$36=A26,$B$2:$B$36)),"") ->  | D26: =IF(A25<>A26,_xlfn.STDEV.S(B26:INDEX($B$2:$B$36,MATCH(A26,$A$2:$A$36))),"") -> 
A27: 2009-10-14 | B27: 0.202 | C27: =IF(A26<>A27,_xlfn.STDEV.S(IF($A$2:$A$36=A27,$B$2:$B$36)),"") -> 0.05498957881 | D27: =IF(A26<>A27,_xlfn.STDEV.S(B27:INDEX($B$2:$B$36,MATCH(A27,$A$2:$A$36))),"") -> 0.05498957881
A28: 2009-10-14 | B28: 0.1953 | C28: =IF(A27<>A28,_xlfn.STDEV.S(IF($A$2:$A$36=A28,$B$2:$B$36)),"") ->  | D28: =IF(A27<>A28,_xlfn.STDEV.S(B28:INDEX($B$2:$B$36,MATCH(A28,$A$2:$A$36))),"") -> 
A29: 2009-10-14 | B29: 0.3336 | C29: =IF(A28<>A29,_xlfn.STDEV.S(IF($A$2:$A$36=A29,$B$2:$B$36)),"") ->  | D29: =IF(A28<>A29,_xlfn.STDEV.S(B29:INDEX($B$2:$B$36,MATCH(A29,$A$2:$A$36))),"") -> 
A30: 2009-10-14 | B30: 0.3299 | C30: =IF(A29<>A30,_xlfn.STDEV.S(IF($A$2:$A$36=A30,$B$2:$B$36)),"") ->  | D30: =IF(A29<>A30,_xlfn.STDEV.S(B30:INDEX($B$2:$B$36,MATCH(A30,$A$2:$A$36))),"") -> 
A31: 2009-10-14 | B31: 0.3137 | C31: =IF(A30<>A31,_xlfn.STDEV.S(IF($A$2:$A$36=A31,$B$2:$B$36)),"") ->  | D31: =IF(A30<>A31,_xlfn.STDEV.S(B31:INDEX($B$2:$B$36,MATCH(A31,$A$2:$A$36))),"") -> 
A32: 2009-10-14 | B32: 0.3223 | C32: =IF(A31<>A32,_xlfn.STDEV.S(IF($A$2:$A$36=A32,$B$2:$B$36)),"") ->  | D32: =IF(A31<>A32,_xlfn.STDEV.S(B32:INDEX($B$2:$B$36,MATCH(A32,$A$2:$A$36))),"") -> 
A33: 2009-10-14 | B33: 0.3203 | C33: =IF(A32<>A33,_xlfn.STDEV.S(IF($A$2:$A$36=A33,$B$2:$B$36)),"") ->  | D33: =IF(A32<>A33,_xlfn.STDEV.S(B33:INDEX($B$2:$B$36,MATCH(A33,$A$2:$A$36))),"") -> 
A34: 2009-10-14 | B34: 0.3348 | C34: =IF(A33<>A34,_xlfn.STDEV.S(IF($A$2:$A$36=A34,$B$2:$B$36)),"") ->  | D34: =IF(A33<>A34,_xlfn.STDEV.S(B34:INDEX($B$2:$B$36,MATCH(A34,$A$2:$A$36))),"") -> 
A35: 2009-10-14 | B35: 0.3317 | C35: =IF(A34<>A35,_xlfn.STDEV.S(IF($A$2:$A$36=A35,$B$2:$B$36)),"") ->  | D35: =IF(A34<>A35,_xlfn.STDEV.S(B35:INDEX($B$2:$B$36,MATCH(A35,$A$2:$A$36))),"") -> 
A36: 2009-10-14 | B36: 0.3368 | C36: =IF(A35<>A36,_xlfn.STDEV.S(IF($A$2:$A$36=A36,$B$2:$B$36)),"") ->  | D36: =IF(A35<>A36,_xlfn.STDEV.S(B36:INDEX($B$2:$B$36,MATCH(A36,$A$2:$A$36))),"") -> 

Sheet 840
A1: Sales | C1: Lower Limit To Class | D1: Upper Limit To Class | E1: Frequency | F1: Total
A2: 71.05 | C2: 0 | D2: 25 | K2: =SUMPRODUCT(--($A$2:$A$17>=C2),--($A$2:$A$17<D2),$A$2:$A$17) -> 96.54
A3: 90.14 | C3: =D2 -> 25 | D3: 50 | K3: =SUMPRODUCT(--($A$2:$A$17>=C3),--($A$2:$A$17<D3),$A$2:$A$17) -> 83.33
A4: 13.74 | C4: =D3 -> 50 | D4: 75 | K4: =SUMPRODUCT(--($A$2:$A$17>=C4),--($A$2:$A$17<D4),$A$2:$A$17) -> 127.58
A5: 56.53 | C5: 75 | D5: 100 | K5: =SUMPRODUCT(--($A$2:$A$17>=C5),--($A$2:$A$17<D5),$A$2:$A$17) -> 466.4
A6: 20.59
A7: 98.33
A8: 7.57
A9: 20.5
A10: 22.55
A11: 98.73
A12: 80.45
A13: 39.59
A14: 98.75
A15: 0.48
A16: 43.74
A17: 11.11

Sheet 840 (an)
A1: Sales | C1: Lower Limit To Class | D1: Upper Limit To Class | E1: Frequency | F1: Total
A2: 71.05 | C2: 0 | D2: 25 | E2: =COUNTIFS($A$2:$A$17,">="&C2,$A$2:$A$17,"<"&D2) -> 7 | F2: =SUMIFS($A$2:$A$17,$A$2:$A$17,">="&C2,$A$2:$A$17,"<"&D2) -> 96.54 | K2: =SUMPRODUCT(--($A$2:$A$17>=C2),--($A$2:$A$17<D2),$A$2:$A$17) -> 96.54
A3: 90.14 | C3: =D2 -> 25 | D3: 50 | E3: =COUNTIFS($A$2:$A$17,">="&C3,$A$2:$A$17,"<"&D3) -> 2 | F3: =SUMIFS($A$2:$A$17,$A$2:$A$17,">="&C3,$A$2:$A$17,"<"&D3) -> 83.33 | K3: =SUMPRODUCT(--($A$2:$A$17>=C3),--($A$2:$A$17<D3),$A$2:$A$17) -> 83.33
A4: 13.74 | C4: =D3 -> 50 | D4: 75 | E4: 2 | F4: 127.58 | K4: =SUMPRODUCT(--($A$2:$A$17>=C4),--($A$2:$A$17<D4),$A$2:$A$17) -> 127.58
A5: 56.53 | C5: 75 | D5: 100 | E5: 5 | F5: 466.4 | K5: =SUMPRODUCT(--($A$2:$A$17>=C5),--($A$2:$A$17<D5),$A$2:$A$17) -> 466.4
A6: 20.59
A7: 98.33 | C7: Sales | D7: Frequency | E7: Sum of Sales
A8: 7.57 | C8: 0-25 | D8: 7 | E8: 96.54
A9: 20.5 | C9: 25-50 | D9: 2 | E9: 83.33
A10: 22.55 | C10: 50-75 | D10: 2 | E10: 127.58
A11: 98.73 | C11: 75-100 | D11: 5 | E11: 466.4
A12: 80.45 | C12: Grand Total | D12: 16 | E12: 773.85
A13: 39.59
A14: 98.75
A15: 0.48
A16: 43.74
A17: 11.11

Sheet 841
A1: Vaules | C1: Mean | D1: STDEV | E1: Value 1 STDEV | F1: Number > 1 STDEV
A2: =RANDBETWEEN(0,120) -> 44
A3: 39
A4: 93 | C4: Mean = 1 Typical Value
A5: 78 | C5: Standard Deviation = Variation = How Fairly Your Mean Represents Its Data Points
A6: 63
A7: 111 | C7: Video on What Standard Deviation means:
A8: 80 | C8: Excel 2010 Statistics #30: Standard Deviation: How fairly does the mean represent its data points?
A9: 0 | C9: http://www.youtube.com/watch?v=Ur_C64ifCoU
A10: 10
A11: 42 | C11: Playlist of many Stats Videos:
A12: 111 | C12: http://www.youtube.com/watch?v=4AZ8G_MqyiM&feature=results_main&playnext=1&list=PLFAD0C5745D4A1F60
A13: 60
A14: 90
A15: 64
A16: 106
A17: 118
A18: 16
A19: 55

Sheet 841 (an)
A1: Vaules | C1: Mean | D1: STDEV | E1: Value 1 STDEV | F1: Number > 1 STDEV
A2: =RANDBETWEEN(0,120) -> 57 | C2: =AVERAGE(A2:A19) -> 82.94444444 | D2: =_xlfn.STDEV.S(A2:A19) -> 31.47075621 | E2: =SUM(C2:D2) -> 114.4152007 | F2: =COUNTIF(A2:A19,">"&E2) -> 3
A3: 96
A4: 91 | C4: Mean = 1 Typical Value
A5: 56 | C5: Standard Deviation = Variation = How Fairly Your Mean Represents Its Data Points
A6: 94
A7: 66 | C7: Video on What Standard Deviation means:
A8: 103 | C8: Excel 2010 Statistics #30: Standard Deviation: How fairly does the mean represent its data points?
A9: 119 | C9: http://www.youtube.com/watch?v=Ur_C64ifCoU
A10: 102
A11: 32 | C11: Playlist of many Stats Videos:
A12: 103 | C12: http://www.youtube.com/watch?v=4AZ8G_MqyiM&feature=results_main&playnext=1&list=PLFAD0C5745D4A1F60
A13: 105
A14: 104
A15: 52
A16: 10
A17: 69
A18: 115
A19: 119

Sheet 842
A1: Names | B1: Duplicate?
A2: Joe
A3: Jo
A4: Joe
A5: Jo
A6: Phil
A7: Phil

Sheet 842 (an)
A1: Names | B1: Duplicate?
A2: Joe | B2: =IF(COUNTIF(A$2:A2,A2)>1,"Dup","") -> 
A3: Jo | B3: =IF(COUNTIF(A$2:A3,A3)>1,"Dup","") -> 
A4: Joe | B4: =IF(COUNTIF(A$2:A4,A4)>1,"Dup","") -> Dup
A5: Jo | B5: =IF(COUNTIF(A$2:A5,A5)>1,"Dup","") -> Dup
A6: Phil | B6: =IF(COUNTIF(A$2:A6,A6)>1,"Dup","") -> 
A7: Phil | B7: =IF(COUNTIF(A$2:A7,A7)>1,"Dup","") -> 

Sheet 843
A1: Date | B1: Product | C1: Customer | D1: Sales | E1: Dup?
A2: 2011-12-14 | B2: Carlota | C2: GIFT | D2: 186
A3: 2011-12-15 | B3: Bellen | C3: PCC | D3: 144
A4: 2011-12-15 | B4: Bellen | C4: PCC | D4: 202
A5: 2011-12-15 | B5: Bellen | C5: WFM | D5: 150
A6: 2011-12-15 | B6: Bellen | C6: PCC | D6: 202
A7: 2011-12-15 | B7: Bellen | C7: WFM | D7: 271
A8: 2011-12-15 | B8: Bellen | C8: WFM | D8: 271
A9: 2011-12-15 | B9: Carlota | C9: WFM | D9: 271

Sheet 843 (an)
A1: Date | B1: Product | C1: Customer | D1: Sales | E1: Dup?
A2: 2011-12-14 | B2: Carlota | C2: GIFT | D2: 186 | E2: =IF(COUNTIFS(A$2:A2,A2,B$2:B2,B2,C$2:C2,C2,D$2:D2,D2)>1,"Dup","") -> 
A3: 2011-12-15 | B3: Bellen | C3: PCC | D3: 144 | E3: =IF(COUNTIFS(A$2:A3,A3,B$2:B3,B3,C$2:C3,C3,D$2:D3,D3)>1,"Dup","") -> 
A4: 2011-12-15 | B4: Bellen | C4: PCC | D4: 202 | E4: =IF(COUNTIFS(A$2:A4,A4,B$2:B4,B4,C$2:C4,C4,D$2:D4,D4)>1,"Dup","") -> 
A5: 2011-12-15 | B5: Bellen | C5: WFM | D5: 150 | E5: =IF(COUNTIFS(A$2:A5,A5,B$2:B5,B5,C$2:C5,C5,D$2:D5,D5)>1,"Dup","") -> 
A6: 2011-12-15 | B6: Bellen | C6: PCC | D6: 202 | E6: =IF(COUNTIFS(A$2:A6,A6,B$2:B6,B6,C$2:C6,C6,D$2:D6,D6)>1,"Dup","") -> Dup
A7: 2011-12-15 | B7: Bellen | C7: WFM | D7: 271 | E7: =IF(COUNTIFS(A$2:A7,A7,B$2:B7,B7,C$2:C7,C7,D$2:D7,D7)>1,"Dup","") -> 
A8: 2011-12-15 | B8: Bellen | C8: WFM | D8: 271 | E8: =IF(COUNTIFS(A$2:A8,A8,B$2:B8,B8,C$2:C8,C8,D$2:D8,D8)>1,"Dup","") -> Dup
A9: 2011-12-15 | B9: Carlota | C9: WFM | D9: 271 | E9: =IF(COUNTIFS(A$2:A9,A9,B$2:B9,B9,C$2:C9,C9,D$2:D9,D9)>1,"Dup","") -> 

Sheet 844
A1: Date | B1: Y/N | D1: Criteria
A2: 2011-10-27 | B2: Y | D2: N | F2: Y
A3: 2011-10-28 | D3: ="Lookup Last Date for "&D2 -> Lookup Last Date for N
A4: 2011-10-29 | B4: N | F4: N
A5: 2011-10-30 | D5: 2007 or 2010
A6: 2011-10-31 | B6: N | D6: =IF(ISERROR(LOOKUP(9.99999999999999E+307,A2:A9/(B2:B9=D2))),"",LOOKUP(9.99999999999999E+307,A2:A9/(B2:B9=D2))) -> 2011-11-02 | F6: N
A7: 2011-11-01 | B7: Y | D7: 2003 or earlier | F7: Y
A8: 2011-11-02 | B8: N | F8: N
A9: 2011-11-03

Sheet 844 (an)
A1: Date | B1: Y/N | D1: Criteria
A2: 2011-10-27 | D2: N
A3: 2011-10-28 | B3: N | D3: ="Lookup Last Date for "&D2 -> Lookup Last Date for N
A4: 2011-10-29 | B4: n | D4: =IFERROR(LOOKUP(9.99999999999999E+307,A2:A9/(B2:B9=D2),A2:A9),"") -> 2011-10-31
A5: 2011-10-30 | D5: 2007 or 2010
A6: 2011-10-31 | B6: n | D6: =IF(ISERROR(LOOKUP(9.99999999999999E+307,A2:A9/(B2:B9=D2))),"",LOOKUP(9.99999999999999E+307,A2:A9/(B2:B9=D2))) -> 2011-10-31
A7: 2011-11-01 | B7: y | D7: 2003 or earlier
A8: 2011-11-02 | B8: Y
A9: 2011-11-03

Sheet 845
A1: End Of Month (EOM) Method for Cash Discounts
A3: Rule:
A4: ="Situation 1 for "&$B$14&":" -> Situation 1 for 3/15 EOM:
A5: If Invoice Date is before the 26th of the month (25, 24, 23…),
A6: Final Date To Take Discount = | B6: ="the "&MID(B14,SEARCH("/",B14)+1,2)&"th of next month." -> the 15th of next month.
A7: Invoice Due Date = Final Date To Take Discount + 20 (20 because net day is not given)
A8: ="Situation 2 for "&$B$14&":" -> Situation 2 for 3/15 EOM:
A9: If Invoice Date is after the 25th of the month (26, 27, 28…),
A10: Final Date To Take Discount = | B10: ="the "&MID(B14,SEARCH("/",B14)+1,2)&"th of two months ahead." -> the 15th of two months ahead.
A11: Invoice Due Date = Final Date To Take Discount + 20 (20 because net day is not given)
A13: Invoice Date | B13: 2011-10-26
A14: Terms | B14: 3/15 EOM
A15: Days Past End Of Month | D15: =MID(Terms,SEARCH("/",Terms)+1,2)
A16: Day Of The Month | D16: =DAY(Invoice Date)
A17: Past 25th of month? | D17: =(Day Of The Month>25)+0
A18: End Of Month | D18: =EOMONTH(Invoice Date,Past 25th of month?)
A19: Final Date To Take Discount | D19: End Of Month + Days Past End Of Month
A20: Invoice Due Date | D20: Final Date To Take Discount + 20
A22: Final Date To Take Discount | D22: =EOMONTH(InvoiceDate,(DAY(InvoiceDate)>25)+0)+Days Past End Of Month
A23: Invoice Due Date | D23: =Final Date To Take Discount + 20

Sheet 845 (an)
A1: End Of Month (EOM) Method for Cash Discounts
A3: Rule:
A4: ="Situation 1 for "&$B$14&":" -> Situation 1 for 3/15 EOM:
A5: If Invoice Date is before the 26th of the month (25, 24, 23…),
A6: Final Date To Take Discount = | B6: ="the "&MID(B14,SEARCH("/",B14)+1,2)&"th of next month." -> the 15th of next month.
A7: Invoice Due Date = Final Date To Take Discount + 20 (20 because net day is not given)
A8: ="Situation 2 for "&$B$14&":" -> Situation 2 for 3/15 EOM:
A9: If Invoice Date is after the 25th of the month (26, 27, 28…),
A10: Final Date To Take Discount = | B10: ="the "&MID(B14,SEARCH("/",B14)+1,2)&"th of two months ahead." -> the 15th of two months ahead.
A11: Invoice Due Date = Final Date To Take Discount + 20 (20 because net day is not given)
A13: Invoice Date | B13: 2011-10-26
A14: Terms | B14: 3/15 EOM
A15: Days Past End Of Month | B15: =MID(B14,3,2)+0 -> 15 | C15: =LEN(B15) -> 2 | D15: =MID(Terms,SEARCH("/",Terms)+1,2)
A16: Day Of The Month | B16: =DAY(B13) -> 26 | D16: =DAY(Invoice Date)
A17: Past 25th of month? | B17: =(B16>25)+0 -> 1 | D17: =(Day Of The Month>25)+0
A18: End Of Month | B18: =EOMONTH(B13,B17) -> 2011-11-30 | D18: =EOMONTH(Invoice Date,Past 25th of month?)
A19: Final Date To Take Discount | B19: =B18+B15 -> 2011-12-15 | D19: End Of Month + Days Past End Of Month
A20: Invoice Due Date | B20: =B19+20 -> 2012-01-04 | D20: Final Date To Take Discount + 20
A22: Final Date To Take Discount | B22: =EOMONTH(B13,(DAY(B13)>25)+0)+MID(B14,3,2) -> 2011-12-15 | D22: =EOMONTH(InvoiceDate,(DAY(InvoiceDate)>25)+0)+Days Past End Of Month
A23: Invoice Due Date | B23: =B22+20 -> 2012-01-04 | D23: =Final Date To Take Discount + 20

Sheet 846
A1: Fill Tom
A2: Dill Pat
A4: Fill Tom | B4: =REPLACE(A4,1,SEARCH(" ",A4),"")&" "&LEFT(A4,SEARCH(" ",A4)-1) -> Tom Fill
A5: Dill Pat | B5: =REPLACE(A5,1,SEARCH(" ",A5),"")&" "&LEFT(A5,SEARCH(" ",A5)-1) -> Pat Dill
A7: Fill Tom | B7: =RIGHT(A7,LEN(A7)-FIND(" ",A7,1))&" "&LEFT(A7,FIND(" ",A7,1)) -> Tom Fill
A8: Dill Pat | B8: =RIGHT(A8,LEN(A8)-FIND(" ",A8,1))&" "&LEFT(A8,FIND(" ",A8,1)) -> Pat Dill

Sheet 846 (an)
A1: Fill Tom | B1: =MID(A1&" "&A1,SEARCH(" ",A1)+1,LEN(A1)) -> Tom Fill
A2: Dill Pat | B2: =MID(A2&" "&A2,SEARCH(" ",A2)+1,LEN(A2)) -> Pat Dill
A4: Fill Tom | B4: =REPLACE(A4,1,SEARCH(" ",A4),"")&" "&LEFT(A4,SEARCH(" ",A4)-1) -> Tom Fill
A5: Dill Pat | B5: =REPLACE(A5,1,SEARCH(" ",A5),"")&" "&LEFT(A5,SEARCH(" ",A5)-1) -> Pat Dill
A7: Fill Tom | B7: =RIGHT(A7,LEN(A7)-FIND(" ",A7,1))&" "&LEFT(A7,FIND(" ",A7,1)) -> Tom Fill
A8: Dill Pat | B8: =RIGHT(A8,LEN(A8)-FIND(" ",A8,1))&" "&LEFT(A8,FIND(" ",A8,1)) -> Pat Dill

Sheet 847
B1: ="Find Second To Last '"&B2&"'" -> Find Second To Last 'Y'
B2: Y
A4: Text | B4: SUBSTITUTE
A5: OYYEQXHRYEWKSRVRSK
A6: TNUGJCYGVOFYKDMQYJM
A7: POEYKJRILXCPHMTYYSY
A8: TYWDMKLIPYYCGVCEYHJO
A9: EHQKWWXGLLIITOTSRYDQ

Sheet 848 (hidden)
C1: Starting Balance | E1: 30000
C2: Account Balance | E2: =SUM(H:H)+E1 -> 29575
A7: Date | B7: Stock | C7: Shares | D7: Price | E7: Risk % | F7: Risk Amount | G7: Close Price | H7: Profit/Loss | I7: Risk Amount?
A8: 2011-11-01 | B8: A | C8: 100 | D8: 25 | E8: 0.01 | F8: ACCTBAL on 11/1 * .01 = 300 | G8: 32 | H8: =IF(G8="","",(G8-D8)*C8) -> 700 | I8: =IF(G8="","",SUM(H7:H$7,E$1)*E8) -> 300
A9: 2011-11-18 | B9: ABC | C9: 75 | D9: 45 | E9: 0.01 | F9: ACCTBAL on 11/18 * .01 = 307 | G9: 32 | H9: =IF(G9="","",(G9-D9)*C9) -> -975 | I9: =IF(G9="","",SUM(H$7:H8,E$1)*E9) -> 307
A10: 2011-12-01 | B10: DEF | C10: 200 | D10: 20 | E10: 0.01 | F10: ACCTBAL on 12/1 * .01 = 297 | G10: 26 | H10: 1200 | I10: =IF(G10="","",SUM(H$7:H9,E$1)*E10) -> 297.25
A11: 2011-12-05 | B11: Z | C11: 90 | D11: 47 | E11: 0.01 | F11: ACCTBAL on 12/5 * .01 = 309 | G11: 32 | H11: -1350 | I11: =IF(G11="","",SUM(H$7:H10,E$1)*E11) -> 309.25
A12: 2011-12-12 | B12: Z | C12: 100 | D12: 35 | E12: 0.01 | F12: = ACCTBAL on 12/12 * .01 | I12: =IF(G12="","",SUM(H$7:H11,E$1)*E12) -> 
I13: =IF(G13="","",SUM(H$7:H12,E$1)*E13) -> 
I14: =IF(G14="","",SUM(H$7:H13,E$1)*E14) -> 
I15: =IF(G15="","",SUM(H$7:H14,E$1)*E15) -> 
I16: =IF(G16="","",SUM(H$7:H15,E$1)*E16) -> 
I17: =IF(G17="","",SUM(H$7:H16,E$1)*E17) -> 
I18: =IF(G18="","",SUM(H$7:H17,E$1)*E18) -> 

Sheet 847 (an)
B1: ="Find Second To Last '"&B2&"'" -> Find Second To Last 'Y'
B2: Y
A4: Text | B4: SUBSTITUTE
A5: OYYEQXHRYEWKSRVRSK | B5: =IFERROR(SEARCH("#",SUBSTITUTE(A5,$B$2,"#",LEN(A5)-LEN(SUBSTITUTE(A5,$B$2,""))-1)),"No "&$B$2) -> 3 | C5: =LEN(A5)-LEN(SUBSTITUTE(A5,$B$2,""))-1 -> 2
A6: TNUGJCYGVOFYKDMQYJM | B6: =IFERROR(SEARCH("#",SUBSTITUTE(A6,$B$2,"#",LEN(A6)-LEN(SUBSTITUTE(A6,$B$2,""))-1)),"No "&$B$2) -> 12 | C6: =LEN(A6)-LEN(SUBSTITUTE(A6,$B$2,""))-1 -> 2
A7: POEYKJRILXCPHMTYYSY | B7: 17 | C7: 3
A8: TYWDMKLIPYYCGVCEYHJO | B8: 11 | C8: 3
A9: EHQKWWXGLLIITOTSRYDQ | B9: No Y | C9: 0

Sheet Sheet3
